fUSD/lending_fUSD_20241003
["ID","MTS","AMOUNT","RATE_DAILY","PERIOD"]
[339793261,1727987540671,-500.0,0.0003589,120]
[339793262,1727987540680,-1375.31,0.0003589,120]
[339793263,1727987540690,-668.57,0.0003589,120]
[339793265,1727987540700,-500.0,0.0003589,120]
[339793266,1727987540710,-1062.68,0.0003589,120]
[339793267,1727987540720,-500.0,0.0003589,120]
[339793269,1727987540729,-1108.65,0.0003589,120]
[339793270,1727987540738,-1917.75,0.0003589,120]
[339793272,1727987540748,-1239.66,0.0003589,120]
[339793273,1727987540758,-749.5,0.0003589,120]
[339793274,1727987540767,-1219.3,0.0003589,120]
[339793276,1727987540776,-1706.35,0.0003589,120]
[339793277,1727987540786,-500.0,0.0003589,120]
[339793278,1727987540796,-1816.28,0.0003589,120]
[339793280,1727987540806,-608.59,0.0003589,120]
[339793281,1727987540815,-500.0,0.0003589,120]
[339793283,1727987540825,-688.2,0.0003589,120]
[339793284,1727987540835,-818.32,0.0003589,120]
[339793285,1727987540844,-2173.75,0.0003589,120]
[339793287,1727987540854,-721.06,0.0003589,120]
[339793288,1727987540868,-2649.5,0.0003589,120]
[339793289,1727987540877,-500.0,0.0003589,120]
[339793291,1727987540887,-500.0,0.0003589,120]
[339793292,1727987540896,-500.0,0.0003589,120]
[339793294,1727987540907,-500.0,0.0003589,15]
[339793295,1727987540916,-952.32,0.0003589,120]
[339793296,1727987540926,-508.75,0.0003589,120]
[339793298,1727987540936,-500.0,0.0003589,120]
[339793299,1727987540949,-2782.16,0.0003589,120]
[339793300,1727987540959,-500.0,0.0003589,120]
[339793302,1727987540969,-500.0,0.0003589,120]
[339793303,1727987540978,-799.66,0.0003589,120]
[339793304,1727987540988,-500.0,0.0003589,120]
[339793306,1727987540997,-528.54,0.0003589,120]
[339793307,1727987541007,-500.0,0.0003589,120]
[339793308,1727987541017,-1116.48,0.0003589,120]
[339793310,1727987541026,-500.0,0.0003589,120]
[339793311,1727987541035,-500.0,0.0003589,120]
[339793313,1727987541045,-538.74891071,0.0003589,120]
[339793314,1727987541054,-500.0,0.0003589,120]
[339793315,1727987541064,-500.0,0.0003589,120]
[339793317,1727987541073,-667.6,0.0003589,120]
[339793318,1727987541083,-516.86,0.0003589,120]
[339793319,1727987541092,-577.36,0.0003589,120]
[339793321,1727987541102,-500.0,0.0003589,120]
[339793322,1727987541111,-2275.0,0.0003589,120]
[339793324,1727987541121,-1181.76,0.0003589,120]
[339793325,1727987541130,-1059.01,0.0003589,120]
[339793326,1727987541140,-500.0,0.0003589,120]
[339793328,1727987541150,-500.0,0.0003589,120]
[339793329,1727987541159,-678.32,0.0003589,120]
[339793330,1727987541169,-500.0,0.0003589,120]
[339793332,1727987541179,-908.96,0.0003589,120]
[339793333,1727987541189,-806.47,0.0003589,120]
[339793335,1727987541202,-1850.2,0.0003589,120]
[339793336,1727987541211,-500.0,0.0003589,120]
[339793337,1727987541221,-500.0,0.0003589,120]
[339793339,1727987541231,-500.0,0.0003589,120]
[339793340,1727987541241,-500.0,0.0003589,120]
[339793342,1727987541252,-532.65,0.0003589,120]
[339793343,1727987541261,-500.0,0.0003589,120]
[339793344,1727987541271,-500.0,0.0003589,120]
[339793346,1727987541280,-500.0,0.0003589,120]
[339793347,1727987541290,-951.98,0.0003589,120]
[339793348,1727987541299,-3113.1,0.0003589,120]
[339793350,1727987541309,-500.0,0.0003589,120]
[339793351,1727987541318,-952.18,0.0003589,120]
[339793352,1727987541328,-1578.27,0.0003589,120]
[339793354,1727987541338,-799.85,0.0003589,120]
[339793355,1727987541347,-500.0,0.0003589,120]
[339793357,1727987541357,-708.6,0.0003589,120]
[339793358,1727987541366,-584.82,0.0003589,120]
[339793359,1727987541376,-560.83,0.0003589,120]
[339793361,1727987541385,-610.78,0.0003589,120]
[339793362,1727987541395,-1249.01,0.0003589,120]
[339793363,1727987541404,-500.0,0.0003589,120]
[339793365,1727987541414,-500.0,0.0003589,120]
[339793366,1727987541424,-500.0,0.0003589,120]
[339793367,1727987541434,-1225.26,0.0003589,120]
[339793368,1727987541445,-911.79,0.0003589,120]
[339793370,1727987541455,-817.82,0.0003589,120]
[339793371,1727987541465,-325.85449392,0.0003589,120]
[339793372,1727987541475,-517.59,0.0003589,120]
[339793373,1727987541485,-1292.49,0.0003589,7]
[339793375,1727987541495,-500.0,0.0003589,120]
[339793376,1727987541505,-500.0,0.0003589,120]
[339793377,1727987541515,-762.72,0.0003589,120]
[339793379,1727987541525,-1396.71,0.0003589,120]
[339793380,1727987541534,-1184.87,0.0003589,120]
[339793381,1727987541543,-1701.57,0.0003589,120]
[339793382,1727987541553,-714.2,0.0003589,120]
[339793384,1727987541563,-500.0,0.0003589,120]
[339793385,1727987541572,-1713.42,0.0003589,120]
[339793386,1727987541582,-676.51,0.0003589,120]
[339793388,1727987541592,-543.4,0.0003589,120]
[339793389,1727987541602,-615.69,0.0003589,120]
[339793390,1727987541612,-500.0,0.0003589,120]
[339793392,1727987541622,-675.57,0.0003589,120]
[339793393,1727987541631,-822.0,0.0003589,120]
[339793394,1727987541641,-500.0,0.0003589,120]
[339793396,1727987541650,-781.4,0.0003589,120]
[339793397,1727987541660,-747.69,0.0003589,120]
[339793398,1727987541670,-500.0,0.0003589,120]
[339793400,1727987541679,-911.34,0.0003589,120]
[339793401,1727987541689,-617.77,0.0003589,120]
[339793402,1727987541700,-500.0,0.0003589,120]
[339793404,1727987541709,-500.0,0.0003589,120]
[339793405,1727987541719,-500.0,0.0003589,120]
[339793406,1727987541729,-500.0,0.0003589,120]
[339793408,1727987541738,-1099.61,0.0003589,120]
[339793409,1727987541748,-500.0,0.0003589,120]
[339793410,1727987541758,-1245.73,0.0003589,120]
[339793412,1727987541767,-605.0,0.0003589,120]
[339793413,1727987541777,-570.35,0.0003589,120]
[339793414,1727987541786,-614.52,0.0003589,120]
[339793415,1727987541795,-806.75,0.0003589,120]
[339793417,1727987541805,-761.4,0.0003589,120]
[339793418,1727987541815,-500.0,0.0003589,120]
[339793419,1727987541824,-269.75489024,0.0003589,120]
[339793421,1727987541835,-1016.56,0.0003589,120]
[339793422,1727987541846,-500.0,0.0003589,120]
[339793424,1727987541856,-908.19,0.0003589,120]
[339793425,1727987541870,-500.0,0.0003589,120]
[339793426,1727987541880,-650.02,0.0003589,120]
[339793428,1727987541890,-2907.54,0.0003589,120]
[339793429,1727987541901,-1955.84,0.0003589,120]
[339793430,1727987541911,-666.23,0.0003589,120]
[339793432,1727987541921,-619.0,0.0003589,120]
[339793433,1727987541931,-1476.07,0.0003589,120]
[339793434,1727987541940,-500.0,0.0003589,120]
[339793436,1727987541953,-200.0,0.0003589,7]
[339793437,1727987541962,-664.13,0.0003589,120]
[339793438,1727987541972,-580.92,0.0003589,120]
[339793440,1727987541982,-559.23,0.0003589,120]
[339793441,1727987541992,-682.12,0.0003589,120]
[339793443,1727987542002,-383.8894025,0.0003589,120]
[339793444,1727987542012,-662.07,0.0003589,120]
[339793445,1727987542022,-1017.64,0.0003589,120]
[339793447,1727987542032,-1843.32,0.0003589,120]
[339793448,1727987542042,-929.85,0.0003589,120]
[339793449,1727987542051,-903.96,0.0003589,120]
[339793451,1727987542061,-1244.9,0.0003589,120]
[339793452,1727987542071,-2059.5,0.0003589,120]
[339793454,1727987542081,-1208.85,0.0003589,120]
[339793455,1727987542090,-500.0,0.0003589,120]
[339793456,1727987542100,-1392.18,0.0003589,120]
[339793458,1727987542110,-1754.22,0.0003589,120]
[339793459,1727987542119,-500.0,0.0003589,120]
[339793460,1727987542129,-3096.26,0.0003589,120]
[339793462,1727987542139,-838.34,0.0003589,120]
[339793463,1727987542149,-500.0,0.0003589,120]
[339793464,1727987542159,-767.37,0.0003589,120]
[339793466,1727987542169,-1262.93,0.0003589,120]
[339793467,1727987542178,-624.86996981,0.0003589,120]
[339793468,1727987542187,-900.49,0.0003589,120]
[339793470,1727987542199,-871.88,0.0003589,120]
[339793471,1727987542209,-546.33,0.0003589,120]
[339793472,1727987542219,-1915.72,0.0003589,120]
[339793474,1727987542229,-500.0,0.0003589,120]
[339793475,1727987542239,-542.05,0.0003589,120]
[339793476,1727987542249,-1246.58,0.0003589,120]
[339793478,1727987542259,-755.2,0.0003589,120]
[339793479,1727987542269,-515.39,0.0003589,120]
[339793480,1727987542279,-1449.61,0.0003589,120]
[339793482,1727987542289,-615.97,0.0003589,120]
[339793483,1727987542298,-287.76989829,0.0003589,120]
[339793485,1727987542308,-500.0,0.0003589,120]
[339793486,1727987542318,-828.98,0.0003589,120]
[339793487,1727987542328,-522.48,0.0003589,120]
[339793489,1727987542337,-500.0,0.0003589,120]
[339793490,1727987542347,-769.93,0.0003589,120]
[339793491,1727987542356,-1535.42,0.0003589,120]
[339793493,1727987542366,-692.01,0.0003589,120]
[339793494,1727987542375,-500.0,0.0003589,120]
[339793495,1727987542386,-500.0,0.0003589,120]
[339793497,1727987542396,-500.0,0.0003589,120]
[339793498,1727987542406,-156.09303334,0.0003589,120]
[339793500,1727987542416,-617.57,0.0003589,120]
[339793501,1727987542426,-1322.47,0.0003589,120]
[339793502,1727987542435,-3041.51,0.0003589,120]
[339793504,1727987542447,-678.3,0.0003589,120]
[339793505,1727987542457,-685.28,0.0003589,120]
[339793506,1727987542466,-1088.33,0.0003589,120]
[339793508,1727987542476,-809.97,0.0003589,120]
[339793509,1727987542485,-617.35,0.0003589,120]
[339793510,1727987542494,-500.0,0.0003589,120]
[339793512,1727987542504,-500.0,0.0003589,120]
[339793513,1727987542513,-504.49,0.0003589,120]
[339793514,1727987542523,-1000.0,0.0003589,120]
[339793516,1727987542533,-2582.55,0.0003589,14]
[339793517,1727987542543,-821.22,0.0003589,120]
[339793519,1727987542553,-500.0,0.0003589,120]
[339793520,1727987542563,-1192.92,0.0003589,120]
[339793521,1727987542572,-752.83,0.0003589,120]
[339793523,1727987542582,-500.0,0.0003589,120]
[339793524,1727987542592,-2036.76,0.0003589,2]
[339793525,1727987542602,-500.0,0.0003589,120]
[339793527,1727987542611,-1822.29,0.0003589,120]
[339793528,1727987542621,-696.33,0.0003589,120]
[339793529,1727987542630,-500.0,0.0003589,120]
[339793531,1727987542640,-1595.23,0.0003589,120]
[339793532,1727987542650,-500.0,0.0003589,120]
[339793533,1727987542660,-1676.96,0.0003589,120]
[339793535,1727987542670,-1430.65,0.0003589,120]
[339793536,1727987542679,-500.0,0.0003589,120]
[339793538,1727987542689,-500.0,0.0003589,120]
[339793539,1727987542700,-1022.58,0.0003589,120]
[339793540,1727987542710,-534.34,0.0003589,120]
[339793542,1727987542719,-572.51,0.0003589,120]
[339793543,1727987542729,-500.0,0.0003589,120]
[339793544,1727987542739,-743.36,0.0003589,120]
[339793546,1727987542749,-722.75,0.0003589,120]
[339793547,1727987542759,-2933.87,0.0003589,120]
[339793548,1727987542769,-891.75,0.0003589,120]
[339793549,1727987542779,-734.12,0.0003589,120]
[339793550,1727987542789,-500.0,0.0003589,120]
[339793551,1727987542799,-500.0,0.0003589,120]
[339793552,1727987542809,-830.44,0.0003589,120]
[339793553,1727987542819,-2736.92,0.0003589,120]
[339793554,1727987542828,-2840.63,0.0003589,120]
[339793555,1727987542838,-1668.6,0.0003589,120]
[339793556,1727987542848,-963.2,0.0003589,120]
[339793557,1727987542860,-3064.64,0.0003589,120]
[339793558,1727987542871,-895.53,0.0003589,120]
[339793559,1727987542881,-500.0,0.0003589,120]
[339793560,1727987542890,-603.25,0.0003589,120]
[339793561,1727987542901,-893.66,0.0003589,120]
[339793562,1727987542911,-1265.22,0.0003589,120]
[339793563,1727987542920,-648.93,0.0003589,120]
[339793564,1727987542930,-702.69,0.0003589,120]
[339793565,1727987542943,-912.75,0.0003589,120]
[339793567,1727987542963,-625.95,0.0003589,120]
[339793568,1727987542973,-500.0,0.0003589,120]
[339793569,1727987542982,-500.0,0.0003589,120]
[339793571,1727987542992,-589.87,0.0003589,120]
[339793572,1727987543002,-309.58650949,0.0003589,120]
[339793573,1727987543012,-904.15,0.0003589,120]
[339793575,1727987543022,-809.38,0.0003589,120]
[339793576,1727987543032,-1583.67,0.0003589,120]
[339793580,1727987543124,-500.0,0.0003589,120]
[339793582,1727987543135,-2849.48,0.0003589,120]
[339793583,1727987543145,-1559.78,0.0003589,120]
[339793585,1727987543155,-526.9,0.0003589,120]
[339793586,1727987543165,-522.66,0.0003589,120]
[339793587,1727987543174,-887.97,0.0003589,120]
[339793589,1727987543184,-608.69,0.0003589,120]
[339793590,1727987543194,-1196.23,0.0003589,120]
[339793592,1727987543204,-184.57332755,0.0003589,120]
[339793593,1727987543214,-1435.23,0.0003589,120]
[339793594,1727987543224,-1891.17,0.0003589,120]
[339793596,1727987543234,-734.62,0.0003589,120]
[339793597,1727987543243,-500.0,0.0003589,5]
[339793598,1727987543252,-1907.44,0.0003589,120]
[339793600,1727987543262,-954.92,0.0003589,30]
[339793601,1727987543272,-760.37,0.0003589,120]
[339793602,1727987543281,-1267.83,0.0003589,120]
[339793604,1727987543291,-500.0,0.0003589,120]
[339793605,1727987543300,-500.0,0.0003589,120]
[339793606,1727987543310,-3152.28,0.0003589,120]
[339793608,1727987543320,-2240.67,0.0003589,120]
[339793609,1727987543330,-500.0,0.0003589,120]
[339793611,1727987543339,-692.31,0.0003589,120]
[339793612,1727987543349,-4273.85,0.0003589,2]
[339793613,1727987543359,-500.0,0.0003589,120]
[339793615,1727987543368,-566.42,0.0003589,120]
[339793616,1727987543377,-1352.94,0.0003589,120]
[339793617,1727987543386,-1375.15,0.0003589,120]
[339793619,1727987543396,-2143.59,0.0003589,120]
[339793620,1727987543406,-500.0,0.0003589,120]
[339793622,1727987543416,-500.0,0.0003589,120]
[339793623,1727987543425,-2552.25,0.0003589,120]
[339793624,1727987543435,-807.0,0.0003589,120]
[339793626,1727987543447,-500.0,0.0003589,120]
[339793627,1727987543457,-1929.43,0.0003589,120]
[339793628,1727987543466,-500.0,0.0003589,120]
[339793630,1727987543475,-687.7,0.0003589,120]
[339793631,1727987543485,-500.0,0.0003589,120]
[339793632,1727987543494,-685.66,0.0003589,120]
[339793634,1727987543504,-500.0,0.0003589,120]
[339793635,1727987543513,-500.0,0.0003589,120]
[339793637,1727987543523,-500.0,0.0003589,120]
[339793638,1727987543532,-500.0,0.0003589,120]
[339793639,1727987543542,-1124.73,0.0003589,120]
[339793641,1727987543551,-500.0,0.0003589,120]
[339793642,1727987543560,-1267.04,0.0003589,120]
[339793643,1727987543569,-1073.96,0.0003589,120]
[339793645,1727987543578,-687.49,0.0003589,120]
[339793646,1727987543588,-515.88,0.0003589,120]
[339793647,1727987543598,-924.47,0.0003589,120]
[339793649,1727987543607,-3529.62,0.0003589,120]
[339793650,1727987543617,-500.0,0.0003589,120]
[339793651,1727987543627,-500.0,0.0003589,120]
[339793652,1727987543636,-500.0,0.0003589,120]
[339793654,1727987543645,-2122.92,0.0003589,120]
[339793655,1727987543655,-1443.8,0.0003589,120]
[339793656,1727987543664,-583.93,0.0003589,120]
[339793658,1727987543673,-1130.17,0.0003589,120]
[339793659,1727987543682,-598.1,0.0003589,120]
[339793660,1727987543692,-500.0,0.0003589,120]
[339793662,1727987543703,-512.25,0.0003589,120]
[339793663,1727987543712,-739.66,0.0003589,120]
[339793665,1727987543721,-2221.7,0.0003589,120]
[339793666,1727987543730,-500.0,0.0003589,120]
[339793667,1727987543740,-753.47,0.0003589,120]
[339793669,1727987543749,-878.47,0.0003589,120]
[339793670,1727987543758,-2105.23,0.0003589,120]
[339793671,1727987543767,-500.0,0.0003589,120]
[339793673,1727987543777,-880.23,0.0003589,120]
[339793674,1727987543787,-1101.24,0.0003589,120]
[339793676,1727987543796,-500.0,0.0003589,120]
[339793677,1727987543805,-594.49,0.0003589,120]
[339793678,1727987543814,-500.0,0.0003589,120]
[339793680,1727987543824,-1746.33,0.0003589,120]
[339793681,1727987543834,-983.59,0.0003589,120]
[339793683,1727987543843,-754.45,0.0003589,120]
[339793684,1727987543853,-1535.26,0.0003589,120]
[339793685,1727987543865,-3156.06,0.0003589,120]
[339793687,1727987543874,-889.14,0.0003589,120]
[339793688,1727987543885,-640.32,0.0003589,120]
[339793689,1727987543895,-2375.19,0.0003589,120]
[339793691,1727987543905,-500.0,0.0003589,120]
[339793692,1727987543915,-500.0,0.0003589,120]
[339793694,1727987543924,-580.84,0.0003589,120]
[339793695,1727987543933,-652.15,0.0003589,120]
[339793696,1727987543946,-2171.15,0.0003589,120]
[339793698,1727987543956,-970.9,0.0003589,120]
[339793699,1727987543965,-576.98,0.0003589,120]
[339793700,1727987543974,-2322.76,0.0003589,120]
[339793702,1727987543983,-2446.1,0.0003589,120]
[339793703,1727987543992,-500.0,0.0003589,120]
[339793704,1727987544002,-569.39,0.0003589,120]
[339793706,1727987544011,-865.83,0.0003589,120]
[339793707,1727987544021,-500.0,0.0003589,120]
[339793708,1727987544030,-559.14,0.0003589,120]
[339793710,1727987544040,-500.0,0.0003589,120]
[339793711,1727987544049,-526.15,0.0003589,120]
[339793712,1727987544059,-500.0,0.0003589,120]
[339793714,1727987544068,-500.0,0.0003589,120]
[339793715,1727987544078,-500.0,0.0003589,120]
[339793717,1727987544087,-1022.47,0.0003589,120]
[339793718,1727987544097,-1404.02,0.0003589,120]
[339793719,1727987544106,-500.0,0.0003589,120]
[339793721,1727987544116,-641.91,0.0003589,120]
[339793722,1727987544125,-926.29,0.0003589,120]
[339793723,1727987544134,-796.9,0.0003589,120]
[339793725,1727987544143,-2021.14,0.0003589,120]
[339793726,1727987544153,-505.01732183,0.0003589,120]
[339793727,1727987544163,-3420.05,0.0003589,120]
[339793729,1727987544173,-500.0,0.0003589,120]
[339793730,1727987544182,-920.88,0.0003589,120]
[339793731,1727987544191,-585.28,0.0003589,120]
[339793733,1727987544201,-1014.09,0.0003589,120]
[339793734,1727987544211,-1372.22,0.0003589,120]
[339793735,1727987544221,-501.73,0.0003589,120]
[339793737,1727987544231,-2342.53,0.0003589,120]
[339793738,1727987544241,-500.0,0.0003589,120]
[339793740,1727987544250,-849.67,0.0003589,120]
[339793741,1727987544260,-503.33,0.0003589,120]
[339793742,1727987544270,-650.32,0.0003589,120]
[339793744,1727987544279,-619.95,0.0003589,120]
[339793745,1727987544288,-4513.04,0.0003589,120]
[339793746,1727987544298,-500.0,0.0003589,120]
[339793748,1727987544307,-697.86,0.0003589,120]
[339793749,1727987544317,-1906.45,0.0003589,120]
[339793750,1727987544327,-500.0,0.0003589,120]
[339793752,1727987544337,-500.0,0.0003589,120]
[339793753,1727987544347,-500.0,0.0003589,120]
[339793754,1727987544356,-1342.8,0.0003589,120]
[339793756,1727987544366,-4469.7,0.0003589,120]
[339793757,1727987544375,-2820.31,0.0003589,120]
[339793759,1727987544385,-1714.59,0.0003589,120]
[339793760,1727987544395,-1567.97,0.0003589,120]
[339793761,1727987544405,-858.96,0.0003589,120]
[339793763,1727987544414,-1071.24,0.0003589,120]
[339793764,1727987544425,-441.59580922,0.0003589,120]
[339793765,1727987544435,-1083.26,0.0003589,120]
[339793767,1727987544445,-1923.73,0.0003589,120]
[339793768,1727987544454,-3953.73,0.0003589,120]
[339793769,1727987544463,-1541.86,0.0003589,120]
[339793771,1727987544472,-646.54,0.0003589,120]
[339793772,1727987544482,-825.35,0.0003589,120]
[339793773,1727987544492,-2326.51,0.0003589,120]
[339793775,1727987544501,-1401.87,0.0003589,120]
[339793776,1727987544511,-8162.3,0.0003589,120]
[339793777,1727987544521,-2202.86,0.0003589,3]
[339793779,1727987544530,-1721.6,0.0003589,120]
[339793780,1727987544540,-1824.09,0.0003589,120]
[339793781,1727987544549,-500.0,0.0003589,120]
[339793783,1727987544560,-797.25,0.0003589,120]
[339793784,1727987544569,-3694.14,0.0003589,120]
[339793786,1727987544578,-648.29,0.0003589,120]
[339793787,1727987544587,-1962.84,0.0003589,120]
[339793788,1727987544597,-770.99,0.0003589,120]
[339793790,1727987544608,-1812.58,0.0003589,120]
[339793791,1727987544618,-1106.97,0.0003589,120]
[339793792,1727987544627,-995.24,0.0003589,120]
[339793794,1727987544638,-1533.42,0.0003589,120]
[339793795,1727987544647,-1245.45,0.0003589,120]
[339793796,1727987544658,-2708.28,0.0003589,120]
[339793797,1727987544668,-1028.68,0.0003589,120]
[339793799,1727987544678,-919.76,0.0003589,120]
[339793800,1727987544687,-500.0,0.0003589,120]
[339793801,1727987544697,-2392.87,0.0003589,120]
[339793803,1727987544706,-500.0,0.0003589,120]
[339793804,1727987544716,-1219.91,0.0003589,120]
[339793805,1727987544726,-500.0,0.0003589,120]
[339793807,1727987544735,-967.14,0.0003589,120]
[339793808,1727987544745,-1971.05,0.0003589,120]
[339793809,1727987544755,-11039.47,0.0003589,120]
[339793811,1727987544764,-1835.01,0.0003589,120]
[339793812,1727987544773,-647.95,0.0003589,120]
[339793813,1727987544782,-1066.51,0.0003589,120]
[339793815,1727987544792,-2065.61,0.0003589,120]
[339793816,1727987544802,-383.83103582,0.0003589,120]
[339793817,1727987544811,-2041.33,0.0003589,120]
[339793819,1727987544821,-500.0,0.0003589,120]
[339793820,1727987544830,-500.0,0.0003589,120]
[339793821,1727987544840,-701.71,0.0003589,120]
[339793823,1727987544850,-512.38,0.0003589,120]
[339793824,1727987544861,-527.76,0.0003589,120]
[339793826,1727987544872,-527.0,0.0003589,120]
[339793827,1727987544882,-500.0,0.0003589,120]
[339793828,1727987544892,-1302.4,0.0003589,120]
[339793830,1727987544903,-500.0,0.0003589,120]
[339793831,1727987544913,-968.42,0.0003589,120]
[339793832,1727987544922,-1041.18,0.0003589,120]
[339793834,1727987544932,-500.0,0.0003589,120]
[339793835,1727987544943,-1510.82,0.0003589,120]
[339793836,1727987544953,-2058.43,0.0003589,120]
[339793838,1727987544963,-1123.06,0.0003589,120]
[339793839,1727987544974,-2566.99,0.0003589,120]
[339793840,1727987544983,-1635.85,0.0003589,120]
[339793842,1727987544992,-500.52,0.0003589,120]
[339793843,1727987545002,-1766.39,0.0003589,120]
[339793845,1727987545012,-1421.18,0.0003589,120]
[339793846,1727987545021,-2301.76,0.0003589,120]
[339793847,1727987545031,-1093.77,0.0003589,120]
[339793849,1727987545040,-2041.08,0.0003589,120]
[339793850,1727987545050,-1056.72,0.0003589,120]
[339793851,1727987545059,-500.0,0.0003589,120]
[339793853,1727987545068,-575.99,0.0003589,120]
[339793854,1727987545078,-4824.18,0.0003589,120]
[339793855,1727987545087,-2539.88,0.0003589,120]
[339793857,1727987545097,-500.0,0.0003589,120]
[339793858,1727987545107,-1031.81,0.0003589,120]
[339793859,1727987545116,-1058.32,0.0003589,120]
[339793861,1727987545125,-500.0,0.0003589,120]
[339793862,1727987545135,-500.0,0.0003589,120]
[339793863,1727987545145,-2770.27,0.0003589,120]
[339793865,1727987545154,-2126.28,0.0003589,120]
[339793866,1727987545163,-500.0,0.0003589,120]
[339793867,1727987545174,-3109.58,0.0003589,120]
[339793869,1727987545184,-500.0,0.0003589,120]
[339793870,1727987545194,-1989.39,0.0003589,120]
[339793871,1727987545204,-2838.83,0.0003589,120]
[339793873,1727987545214,-2489.9,0.0003589,120]
[339793874,1727987545225,-2454.73,0.0003589,120]
[339793875,1727987545235,-1539.86,0.0003589,120]
[339793877,1727987545245,-1548.63,0.0003589,120]
[339793878,1727987545255,-751.5,0.0003589,120]
[339793880,1727987545265,-1135.51,0.0003589,120]
[339793881,1727987545275,-500.0,0.0003589,120]
[339793882,1727987545285,-26307.75,0.0003589,120]
[339793884,1727987545294,-1359.32,0.0003589,120]
[339793885,1727987545304,-920.13,0.0003589,120]
[339793886,1727987545314,-2373.28,0.0003589,120]
[339793888,1727987545324,-723.9,0.0003589,120]
[339793889,1727987545333,-500.0,0.0003589,120]
[339793890,1727987545343,-683.05,0.0003589,120]
[339793892,1727987545352,-500.0,0.0003589,120]
[339793893,1727987545362,-1328.33,0.0003589,120]
[339793895,1727987545372,-1718.99,0.0003589,120]
[339793896,1727987545381,-500.0,0.0003589,120]
[339793897,1727987545390,-2515.59,0.0003589,120]
[339793899,1727987545399,-953.41,0.0003589,120]
[339793900,1727987545409,-876.22,0.0003589,120]
[339793901,1727987545419,-2264.01,0.0003589,120]
[339793903,1727987545428,-1281.35,0.0003589,120]
[339793904,1727987545438,-2588.02,0.0003589,120]
[339793906,1727987545449,-1057.1,0.0003589,120]
[339793907,1727987545459,-1543.66,0.0003589,120]
[339793908,1727987545468,-567.28,0.0003589,120]
[339793910,1727987545478,-1173.73,0.0003589,120]
[339793911,1727987545490,-500.0,0.0003589,120]
[339793913,1727987545501,-622.45,0.0003589,120]
[339793914,1727987545511,-831.03,0.0003589,120]
[339793915,1727987545522,-574.46,0.0003589,120]
[339793917,1727987545531,-999.57,0.0003589,120]
[339793918,1727987545542,-605.72,0.0003589,120]
[339793919,1727987545552,-500.0,0.0003589,120]
[339793921,1727987545562,-656.14,0.0003589,24]
[339793922,1727987545572,-1059.55,0.0003589,120]
[339793923,1727987545581,-1114.36,0.0003589,120]
[339793925,1727987545590,-2557.98,0.0003589,120]
[339793926,1727987545600,-500.0,0.0003589,120]
[339793927,1727987545609,-2619.08,0.0003589,120]
[339793929,1727987545619,-985.85,0.0003589,120]
[339793930,1727987545630,-2196.8,0.0003589,120]
[339793931,1727987545639,-1368.57,0.0003589,120]
[339793933,1727987545649,-534.46,0.0003589,120]